bitfinex-derivatives/quotes_SOLF0:USTF0_20250309
["timestamp","ask_amount","ask_price","bid_price","bid_amount"]
[1741511825954,0.05458219,139.07,139.05,0.05487112]
[1741511826354,0.05458219,139.07,139.06,10.01681205]
[1741511827564,25.74,139.11,139.06,10.01681205]
[1741511827759,25.74,139.11,139.08,10.01681205]
[1741511828355,10.01681205,139.13,139.08,10.01681205]
[1741511828559,35.75681205,139.13,139.08,10.01681205]
[1741511828759,0.04977078,139.12,139.1,10.01681205]
[1741511829163,0.04977078,139.12,139.1,17.20701205]
[1741511829565,0.04977078,139.12,139.1,10.01681205]
[1741511829765,0.04977078,139.12,139.09,0.0510096]
[1741511830769,7.23927078,139.12,139.09,0.0510096]
[1741511831164,0.04977078,139.12,139.09,0.0510096]
[1741511831963,0.04977078,139.12,139.1,7.1902]
[1741511832659,0.04977078,139.12,139.1,17.20701205]
[1741511833058,0.04977078,139.12,139.1,10.01681205]
[1741511835170,7.23917078,139.12,139.09,0.0510096]
[1741511835862,0.04977078,139.12,139.09,0.0510096]
[1741511836067,0.04977078,139.12,139.09,7.2417096]
[1741511836875,7.23907078,139.12,139.09,0.0510096]
[1741511837562,7.1903,139.1,139.09,0.0510096]
[1741511838769,7.1925,139.06,139.04,10.01681205]
[1741511839072,25.74,139.07,139.04,10.01681205]
[1741511839478,25.74,139.07,139.02,42.07698428]
[1741511839479,25.74,139.07,139.02,52.09379633]
[1741511839771,0.05188024,139.06,139.03,0.05088941]
[1741511840776,0.05188024,139.06,139.03,7.24478941]
[1741511841171,0.05188024,139.06,139.04,10.01681205]
[1741511841370,0.05188024,139.06,139.05,7.1929]
[1741511844674,0.05188024,139.06,139.04,17.21001205]
[1741511844976,0.05188024,139.06,139.04,10.01681205]
[1741511846378,0.05188024,139.06,139.03,0.05088941]
[1741511846871,7.24448024,139.06,139.03,0.05088941]
[1741511848073,0.05188024,139.06,139.04,10.01681205]
[1741511849279,0.05188024,139.06,139.05,7.1929]
[1741511849775,0.05188024,139.06,139.04,17.21021205]
[1741511850676,0.05188024,139.06,139.04,10.01681205]
[1741511850878,7.1933,139.05,139.03,0.05088941]
[1741511851770,32.98458024,139.06,139.03,10.06770146]
[1741511852275,7.193,139.05,139.03,10.06770146]
[1741511853280,32.98458024,139.06,139.03,10.06770146]
[1741511853977,0.05188024,139.06,139.05,10.01681205]
[1741511854879,0.05188024,139.06,139.05,17.20971205]
[1741511855075,0.05188024,139.06,139.05,10.01681205]
[1741511857377,0.05188024,139.06,139.03,35.80770146]
[1741511857576,0.05188024,139.06,139.04,7.1934]
[1741511858179,0.05188024,139.06,139.03,35.80770146]
[1741511858481,0.05188024,139.06,139.05,10.01681205]
[1741511860082,0.05188024,139.06,139.03,35.80770146]
[1741511860281,0.05188024,139.06,139.03,10.06770146]
[1741511860480,0.05188024,139.06,139.05,10.01681205]
[1741511860682,0.05188024,139.06,139.03,10.06770146]
[1741511862081,7.24428024,139.06,139.03,10.06770146]
[1741511862685,0.05188024,139.06,139.03,17.26160146]
[1741511862885,0.05188024,139.06,139.03,10.06770146]
[1741511863283,7.1933,139.05,139.03,0.05088941]
[1741511863484,0.05188024,139.06,139.03,0.05088941]
[1741511863782,32.98458024,139.06,139.03,0.05088941]
[1741511863981,25.79188024,139.06,139.03,10.06770146]
[1741511864989,25.79188024,139.06,139.04,7.1931]
[1741511866279,0.05188024,139.06,139.04,7.1931]
[1741511866484,0.05188024,139.06,139.03,17.26140146]
[1741511868086,0.05188024,139.06,139.05,10.01681205]
[1741511868681,0.05188024,139.06,139.05,17.20971205]
[1741511870883,0.05188024,139.06,139.05,10.01681205]
[1741511871089,0.05188024,139.06,139.04,7.1932]
[1741511871388,0.05188024,139.06,139.03,10.06770146]
[1741511871582,10.06869229,139.06,139.03,0.05088941]
[1741511871778,7.1933,139.05,139.03,0.05088941]
[1741511872587,43.00119229,139.06,139.03,0.05088941]
[1741511872786,25.79188024,139.06,139.03,0.05088941]
[1741511873991,32.98428024,139.06,139.03,0.05088941]
[1741511874790,43.00109229,139.06,139.03,0.05088941]
[1741511874994,7.1931,139.05,139.03,0.05088941]
[1741511876989,35.80869229,139.06,139.03,0.05088941]
[1741511877190,43.00129229,139.06,139.03,0.05088941]
[1741511877484,35.80869229,139.06,139.03,0.05088941]
[1741511877692,7.193,139.05,139.03,0.05088941]
[1741511878388,35.80869229,139.06,139.03,0.05088941]
[1741511878593,7.1934,139.04,139.03,0.05088941]
[1741511879689,17.21021205,139.04,139.03,0.05088941]
[1741511879889,7.1953,139.01,138.98,10.01681205]
[1741511880291,25.74,139.06,139.0,10.01681205]
[1741511880498,25.74,139.06,139.02,10.01681205]
[1741511880895,0.04923801,139.05,139.03,0.05509914]
[1741511881196,7.24213801,139.05,139.03,0.05509914]
[1741511882494,0.04923801,139.05,139.03,0.05509914]
[1741511884505,7.24223801,139.05,139.03,0.05509914]
[1741511885506,0.04923801,139.05,139.03,0.05509914]
[1741511885708,7.1934,139.04,139.03,0.05509914]
[1741511886303,17.25915006,139.05,139.03,0.05509914]
[1741511886508,10.06605006,139.05,139.03,0.05509914]
[1741511887406,7.1934,139.04,139.03,0.05509914]
[1741511888008,0.04923801,139.05,139.03,0.05509914]
[1741511888602,0.04923801,139.05,139.03,7.24899914]
[1741511890012,0.04923801,139.05,139.03,0.05509914]
[1741511891010,10.06605006,139.05,139.03,0.05509914]
[1741511891210,10.06605006,139.05,138.96,25.74]
[1741511891414,10.01681205,139.03,138.98,10.01681205]
[1741511891718,25.74,139.02,138.98,10.01681205]
[1741511892218,32.9347,139.02,138.98,17.21301205]
[1741511892418,0.04960577,139.01,138.99,0.05201256]
[1741511893115,0.04960577,139.01,139.0,17.21231205]
[1741511894519,35.75681205,139.05,139.02,7.1942]
[1741511894520,25.74,139.05,139.02,7.1942]
[1741511894818,25.74,139.05,139.02,17.21101205]
[1741511895007,25.74,139.05,139.02,10.01681205]
[1741511895618,10.01681205,139.03,138.98,10.01681205]
[1741511895822,10.01681205,139.03,139.02,0.04772175]
[1741511896121,7.1959,139.0,138.99,0.0466751]
[1741511897123,17.21221205,139.01,138.99,0.0466751]
[1741511897324,7.1954,139.01,138.99,0.0466751]
[1741511897623,25.78703797,139.02,138.99,0.0466751]
[1741511897814,7.1955,139.0,138.99,0.0466751]
[1741511898218,7.1953,139.01,138.99,0.0466751]
[1741511900730,25.78703797,139.02,138.99,0.0466751]
[1741511900731,7.1955,139.0,138.99,0.0466751]
[1741511901026,41.44597586,139.02,138.99,0.0466751]
[1741511902329,7.195,139.01,138.99,0.0466751]
[1741511902723,41.44597586,139.02,138.99,0.0466751]
[1741511903430,7.195,139.01,138.99,0.0466751]
[1741511905030,48.64067586,139.02,138.99,0.0466751]
[1741511905724,41.44597586,139.02,138.99,0.0466751]
[1741511906021,7.1951,139.01,138.99,0.0466751]
[1741511906430,7.1955,139.0,138.99,0.0466751]
[1741511907525,7.1955,139.0,138.95,7.198]
[1741511907526,7.1965,138.99,138.95,7.198]
[1741511907827,25.74,138.98,138.95,7.198]
[1741511908223,25.74,138.98,138.91,41.39893789]
[1741511908427,25.74,138.98,138.96,7.1972]
[1741511908833,25.79463871,138.98,138.96,7.1972]
[1741511914436,25.79463871,138.98,138.93,15.7065154]
[1741511914637,32.99133871,138.98,138.95,7.1979]
[1741511915031,41.4535766,138.98,138.93,0.04757751]
[1741511915332,15.65893789,138.94,138.87,30.03493821]
[1741511915636,7.1997,138.92,138.88,17.21324607]
[1741511915837,25.74,138.93,138.88,10.01164607]
[1741511916536,0.05070302,138.92,138.89,0.03913524]
[1741511917235,10.08526423,138.92,138.89,0.03913524]
[1741511917834,17.28496423,138.92,138.89,0.03913524]
[1741511918139,10.03456121,138.9,138.89,0.03913524]
[1741511918343,35.77456121,138.9,138.89,0.03913524]
[1741511920029,25.74,138.9,138.89,0.03913524]
[1741511922540,25.74,138.9,138.89,7.24033524]
[1741511922740,10.08526423,138.92,138.89,0.03913524]
[1741511923136,17.28496423,138.92,138.89,0.03913524]
[1741511924539,10.08526423,138.92,138.89,0.03913524]
[1741511924738,10.08526423,138.92,138.89,7.24013524]
[1741511926140,10.08526423,138.92,138.89,0.03913524]
[1741511926642,17.23526121,138.9,138.89,0.03913524]
[1741511926941,42.99526121,138.9,138.89,0.03913524]
[1741511927840,42.99526121,138.9,138.83,10.03456121]
[1741511927841,17.23676121,138.88,138.83,17.23876121]
[1741511928041,25.76,138.87,138.83,17.23876121]
[1741511928438,25.76,138.87,138.82,7.2046]
[1741511928439,10.03456121,138.86,138.82,7.2046]
[1741511928639,10.03456121,138.86,138.81,11.98376121]
[1741511928939,0.04860634,138.85,138.81,11.98376121]
[1741511929142,0.04860634,138.85,138.81,19.18876121]
[1741511929342,0.04860634,138.85,138.81,17.23956121]
[1741511930350,0.04860634,138.85,138.81,10.03456121]
[1741511930551,0.04860634,138.85,138.82,7.2047]
[1741511930843,0.04860634,138.85,138.81,10.03456121]
[1741511931050,0.04860634,138.85,138.81,17.23976121]
[1741511931442,0.04860634,138.85,138.82,7.2045]
[1741511931938,0.04860634,138.85,138.81,10.03456121]
[1741511932940,0.04860634,138.85,138.81,17.23976121]
[1741511933252,0.04860634,138.85,138.81,10.03456121]
[1741511933543,25.76,138.84,138.81,10.03456121]
[1741511934251,25.76,138.84,138.81,17.23956121]
[1741511936646,25.76,138.84,138.81,10.03456121]
[1741511936852,25.76,138.84,138.82,7.2045]
[1741511937750,25.76,138.84,138.81,10.03456121]
[1741511937751,25.76,138.84,138.81,17.23956121]
[1741511937950,25.76,138.84,138.81,10.03456121]
[1741511938152,25.76,138.84,138.82,7.2048]
[1741511938751,25.76,138.84,138.81,10.03456121]
[1741511938953,25.76,138.84,138.81,17.23966121]
[1741511939166,25.76,138.84,138.81,10.03456121]
[1741511940653,25.76,138.84,138.82,7.2044]
[1741511941143,25.76,138.84,138.83,7.2043]
[1741511943360,0.04860634,138.85,138.84,7.2038]
[1741511945457,0.04860634,138.85,138.82,7.2047]
[1741511945663,0.04860634,138.85,138.81,10.03456121]
[1741511946460,7.25210634,138.85,138.81,7.2051]
[1741511946859,25.76,138.84,138.81,7.2051]
[1741511949862,32.9638,138.84,138.81,7.2051]
[1741511953164,25.76,138.84,138.82,7.2048]
[1741511953664,25.76,138.84,138.79,14.03456121]
[1741511953866,32.9638,138.84,138.81,7.205]
[1741511955660,25.76,138.84,138.82,7.2048]
[1741511957469,0.04860634,138.85,138.81,10.03456121]
[1741511957658,0.04860634,138.85,138.83,7.2042]
[1741511963174,0.04860634,138.85,138.81,10.03456121]
[1741511963371,0.04860634,138.85,138.84,7.2038]
[1741511965082,0.04860634,138.85,138.83,7.2041]
[1741511965775,0.04860634,138.85,138.82,7.2046]
[1741511966676,0.04860634,138.85,138.83,7.2043]
[1741511967073,0.04860634,138.85,138.81,10.03456121]
[1741511967277,0.04860634,138.85,138.84,7.2038]
[1741511977380,0.04860634,138.85,138.83,35.79456121]
[1741511977579,0.04860634,138.85,138.81,17.23966121]
[1741511977786,7.25220634,138.85,138.81,17.23966121]
[1741511981887,0.04860634,138.85,138.81,17.23966121]
[1741511982088,7.2039,138.84,138.81,17.23966121]
[1741511983393,7.2039,138.84,138.81,10.03456121]
[1741511984093,7.2039,138.84,138.81,17.23986121]
[1741511986296,7.25200634,138.85,138.81,17.23986121]
[1741511988094,7.25200634,138.85,138.81,10.03456121]
[1741511988293,0.04860634,138.85,138.84,7.2038]
[1741511988596,0.04860634,138.85,138.83,10.03456121]
[1741511989786,0.04860634,138.85,138.83,17.23886121]
[1741511990591,0.04860634,138.85,138.84,7.2038]
[1741511993100,10.03456121,138.9,138.86,10.03456121]
[1741511993701,7.2017,138.88,138.86,10.03456121]
[1741511994097,7.24814447,138.88,138.86,10.08316755]
[1741511995906,7.2022,138.87,138.86,0.04860634]
[1741512001606,43.04290568,138.88,138.86,0.04860634]
[1741512001906,35.84100568,138.88,138.86,0.04860634]
[1741512002111,7.2022,138.87,138.86,0.04860634]
[1741512007612,35.84100568,138.88,138.8,10.03456121]
[1741512007812,7.204,138.84,138.8,10.03456121]
[1741512008400,10.03456121,138.85,138.8,10.03456121]
[1741512008604,17.23816121,138.85,138.81,7.2052]
[1741512008802,0.05147289,138.84,138.81,7.2052]
[1741512009011,0.05147289,138.84,138.8,10.03456121]
[1741512009211,7.25557289,138.84,138.8,17.24026121]
[1741512009404,0.05147289,138.84,138.8,17.24026121]
[1741512009607,0.05147289,138.84,138.82,10.03456121]
[1741512010914,0.05147289,138.84,138.8,17.24016121]
[1741512011114,0.05147289,138.84,138.8,10.03456121]
[1741512011514,0.05147289,138.84,138.81,7.205]
[1741512012306,0.05147289,138.84,138.82,17.23906121]
[1741512013115,0.05147289,138.84,138.81,7.2052]
[1741512013809,0.05147289,138.84,138.8,10.03456121]
[1741512014016,0.05147289,138.84,138.78,10.03456121]
[1741512014210,25.81147289,138.84,138.78,10.03456121]
[1741512014415,7.2044,138.83,138.78,10.03456121]
[1741512015018,7.2044,138.83,138.76,63.36395973]
[1741512015019,10.03456121,138.83,138.76,63.36395973]
[1741512015209,7.2059,138.8,138.76,63.36395973]
[1741512015617,7.2059,138.8,138.76,10.01164607]
[1741512016214,35.84919566,138.81,138.76,17.21944607]
[1741512016416,35.84919566,138.81,138.76,10.01164607]
[1741512016918,35.84919566,138.81,138.77,7.2071]
[1741512018319,35.84919566,138.81,138.76,10.01164607]
[1741512018516,35.84919566,138.81,138.78,7.2069]
[1741512019020,35.84919566,138.81,138.77,7.2072]
[1741512019318,35.84919566,138.81,138.76,10.01164607]
[1741512020421,35.84919566,138.81,138.78,7.2068]
[1741512022320,35.84919566,138.81,138.8,7.2059]
[1741512022725,0.05463445,138.81,138.8,7.2059]
[1741512023224,0.05463445,138.81,138.79,7.2061]
[1741512024025,0.05463445,138.81,138.78,7.2069]
[1741512024822,10.08919566,138.81,138.77,10.03456121]
[1741512025126,17.29449566,138.81,138.77,7.2073]
[1741512026627,7.2059,138.8,138.76,32.9677]
[1741512026828,7.2059,138.8,138.76,7.2077]
[1741512027922,7.2065,138.79,138.75,17.24266121]
[1741512028728,7.2065,138.79,138.75,7.2081]
[1741512029030,17.24106121,138.79,138.75,7.2081]
[1741512029219,7.2072,138.78,138.74,10.03456121]
[1741512029424,10.03456121,138.79,138.74,10.03456121]
[1741512029626,0.0489998,138.77,138.74,10.03456121]
[1741512029927,0.0489998,138.77,138.76,7.2079]
[1741512030920,0.0489998,138.77,138.74,10.03456121]
[1741512031119,0.0489998,138.77,138.75,7.2083]
[1741512031523,0.0489998,138.77,138.75,7.2085]
[1741512031930,0.0489998,138.77,138.74,10.03456121]
[1741512032128,0.0489998,138.77,138.76,7.2079]
[1741512032322,0.0489998,138.77,138.74,10.03456121]
[1741512032724,0.0489998,138.77,138.74,17.24336121]
[1741512033032,7.2563998,138.77,138.74,10.03456121]
[1741512033630,0.0489998,138.77,138.74,17.24316121]
[1741512034629,7.2563998,138.77,138.74,10.03456121]
[1741512035030,7.2083,138.76,138.72,10.03456121]
[1741512035334,7.2083,138.76,138.72,17.24446121]
[1741512035832,7.2088,138.75,138.7,7.2107]
[1741512036035,10.03456121,138.74,138.7,7.2107]
[1741512036234,10.03456121,138.72,138.69,10.01164607]
[1741512036429,10.03456121,138.7,138.69,10.01164607]
[1741512038137,10.03456121,138.7,138.66,10.01164607]
[1741512038336,25.81382435,138.71,138.66,20.04620728]
[1741512039437,25.81382435,138.71,138.67,7.2126]
[1741512039935,25.81382435,138.71,138.69,7.2115]
[1741512040137,0.05382435,138.71,138.7,10.03456121]
[1741512041235,0.05382435,138.71,138.7,17.24566121]
[1741512041432,25.76,138.77,138.7,10.03456121]
[1741512041635,25.76,138.77,138.73,10.03456121]
[1741512042035,25.78,138.77,138.73,10.03456121]
[1741512042641,0.04887379,138.76,138.74,0.0508758]
[1741512044237,0.04887379,138.76,138.75,7.2085]
[1741512046445,0.04887379,138.76,138.75,17.24306121]
[1741512050453,10.03456121,138.82,138.81,7.2053]
[1741512050639,35.79456121,138.84,138.81,7.2053]
[1741512051637,10.03456121,138.82,138.75,10.03456121]
[1741512051850,10.03456121,138.8,138.75,10.03456121]
[1741512052147,10.08306496,138.8,138.77,0.05109195]
[1741512052843,17.28916496,138.8,138.77,0.05109195]
[1741512054045,17.24146121,138.78,138.77,0.05109195]
[1741512054253,35.79456121,138.78,138.71,11.99526121]
[1741512054452,10.03456121,138.75,138.71,10.03456121]
[1741512054653,10.03456121,138.75,138.7,7.2109]
[1741512055051,7.2093,138.74,138.69,17.24596121]
[1741512055352,10.03456121,138.75,138.69,17.24596121]
[1741512055353,10.08080641,138.73,138.7,0.04841812]
[1741512056952,10.03456121,138.71,138.7,0.04841812]
[1741512060960,10.03456121,138.71,138.64,10.03456121]
[1741512061260,10.03456121,138.69,138.64,10.03456121]
[1741512061654,10.03456121,138.69,138.66,7.2131]
[1741512062054,17.29963738,138.69,138.65,7.2135]
[1741512062762,17.24726121,138.67,138.63,7.2147]
[1741512063061,43.02726121,138.67,138.63,7.2147]
[1741512063254,17.24826121,138.65,138.61,7.2155]
[1741512063664,0.04545596,138.64,138.61,7.2155]
[1741512064064,25.82545596,138.64,138.61,7.2155]
[1741512064565,25.82545596,138.64,138.6,20.04620728]
[1741512064971,25.82545596,138.64,138.62,7.215]
[1741512066568,25.82545596,138.64,138.63,7.2147]
[1741512066763,25.82545596,138.64,138.6,10.03456121]
[1741512067069,25.82545596,138.64,138.63,7.2147]
[1741512071572,0.04545596,138.64,138.63,7.2147]
[1741512072671,10.03456121,138.69,138.62,10.03456121]
[1741512072873,35.81456121,138.69,138.67,7.2123]
[1741512074076,35.86475589,138.69,138.67,0.04996393]
[1741512074874,7.2121,138.68,138.67,0.04996393]
[1741512075583,35.86475589,138.69,138.67,0.04996393]
[1741512075584,43.07655589,138.69,138.67,0.04996393]
[1741512075974,35.86475589,138.69,138.67,0.04996393]
[1741512076179,35.86475589,138.69,138.63,7.2145]
[1741512076381,10.03456121,138.66,138.63,7.2145]
[1741512076682,25.78,138.65,138.61,10.03456121]
[1741512076880,25.78,138.65,138.62,7.2149]
[1741512077386,25.83127285,138.65,138.62,7.2149]
[1741512077583,25.83127285,138.65,138.61,10.03456121]
[1741512078276,25.83127285,138.65,138.63,7.2144]
[1741512078881,25.83127285,138.65,138.62,7.215]
[1741512080279,25.83127285,138.65,138.61,10.03456121]
[1741512080480,25.83127285,138.65,138.63,7.2144]
[1741512080681,25.83127285,138.65,138.61,10.03456121]
[1741512080883,25.83127285,138.65,138.64,7.2142]
[1741512081284,0.05127285,138.65,138.64,7.2142]
[1741512083475,11.90246121,138.72,138.64,25.78]
[1741512083680,11.90246121,138.72,138.69,7.2115]
[1741512084283,19.11276121,138.72,138.69,7.2115]
[1741512084482,19.11276121,138.72,138.65,10.03456121]
[1741512084686,19.16820035,138.72,138.69,0.04823017]
[1741512085279,7.2106,138.71,138.69,0.04823017]
[1741512086381,1.92333914,138.72,138.69,0.04823017]
[1741512086687,0.05543914,138.72,138.69,0.04823017]
[1741512087288,0.05543914,138.72,138.69,10.08279138]
[1741512087981,0.05543914,138.72,138.71,7.2105]
[1741512088980,0.05543914,138.72,138.71,17.24506121]
[1741512091392,0.05543914,138.72,138.71,7.2105]
[1741512093491,0.05543914,138.72,138.7,7.2109]
[1741512093894,0.05543914,138.72,138.69,41.54320242]
[1741512094089,0.05543914,138.72,138.71,7.2105]
[1741512094598,0.05543914,138.72,138.69,25.82823017]
[1741512095197,7.26573914,138.72,138.69,25.82823017]
[1741512096697,25.83543914,138.72,138.69,0.04823017]
[1741512097090,31.87873914,138.72,138.69,0.04823017]
[1741512097494,7.2109,138.71,138.69,0.04823017]
[1741512098195,39.08883914,138.72,138.69,0.04823017]
[1741512098392,31.87873914,138.72,138.69,0.04823017]
[1741512098897,7.2105,138.71,138.69,0.04823017]
[1741512099195,31.87873914,138.72,138.69,0.04823017]
[1741512099391,29.88753914,138.72,138.69,0.04823017]
[1741512099596,37.09793914,138.72,138.69,0.04823017]
[1741512099897,25.83543914,138.72,138.69,0.04823017]
[1741512100199,25.83543914,138.72,138.69,7.25963017]
[1741512100503,25.83543914,138.72,138.69,0.04823017]
[1741512101098,25.83543914,138.72,138.69,7.25943017]
[1741512101302,25.83543914,138.72,138.69,0.04823017]
[1741512101891,33.04583914,138.72,138.69,0.04823017]
[1741512102297,7.26583914,138.72,138.69,0.04823017]
[1741512103399,7.26583914,138.72,138.69,7.25973017]
[1741512104008,0.05543914,138.72,138.69,7.25973017]
[1741512104205,0.05543914,138.72,138.7,7.211]
[1741512104507,0.05543914,138.72,138.69,0.04823017]
[1741512104805,0.05543914,138.72,138.7,7.2106]
[1741512104995,0.05543914,138.72,138.71,25.78]
[1741512105401,0.05543914,138.72,138.71,32.9905]
[1741512106103,72.85482368,138.79,138.71,41.49497225]
[1741512106402,65.64822368,138.79,138.71,41.49497225]
[1741512106601,15.71497225,138.78,138.72,7.2099]
[1741512106904,7.2083,138.76,138.72,7.2099]
[1741512107106,0.05159863,138.75,138.73,0.0499519]
[1741512108411,0.05159863,138.75,138.74,7.209]
[1741512108812,0.05159863,138.75,138.73,0.0499519]
[1741512109908,0.05159863,138.75,138.73,7.2590519]
[1741512111207,0.05159863,138.75,138.74,7.209]
[1741512113811,0.05159863,138.75,138.73,7.2592519]
[1741512115715,0.05159863,138.75,138.73,0.0499519]
[1741512118417,0.05159863,138.75,138.74,7.209]
[1741512120414,0.05159863,138.75,138.74,17.26554561]
[1741512131527,0.05159863,138.75,138.73,7.2592519]
[1741512131927,0.05159863,138.75,138.73,0.0499519]
[1741512132229,0.05159863,138.75,138.74,7.209]
[1741512133128,0.05159863,138.75,138.73,7.2592519]
[1741512134035,0.05159863,138.75,138.74,7.209]
[1741512134834,0.05159863,138.75,138.73,0.0499519]
[1741512135827,0.05159863,138.75,138.74,7.209]
[1741512136930,0.05159863,138.75,138.73,0.0499519]
[1741512137125,0.05159863,138.75,138.73,7.2591519]
[1741512137636,7.26059863,138.75,138.73,0.0499519]
[1741512137830,0.05159863,138.75,138.73,0.0499519]
[1741512138437,0.05159863,138.75,138.73,7.2591519]
[1741512139339,0.05159863,138.75,138.73,0.0499519]
[1741512139837,0.05159863,138.75,138.73,7.2593519]
[1741512140238,0.05159863,138.75,138.73,0.0499519]
[1741512141437,0.05159863,138.75,138.73,7.2593519]
[1741512141940,0.05159863,138.75,138.73,0.0499519]
[1741512142635,0.05159863,138.75,138.74,10.05654561]
[1741512143741,0.05159863,138.75,138.73,0.0499519]
[1741512144244,0.05159863,138.75,138.73,7.2591519]
[1741512144943,0.05159863,138.75,138.74,7.209]
[1741512147042,0.05159863,138.75,138.73,7.2594519]
[1741512147538,0.05159863,138.75,138.73,0.0499519]
[1741512147743,0.05159863,138.75,138.74,7.209]
[1741512148542,0.05159863,138.75,138.74,17.26554561]
[1741512150144,41.70244561,138.81,138.74,10.05654561]
[1741512150340,41.70244561,138.81,138.76,10.05654561]
[1741512150740,48.90814561,138.81,138.77,7.2071]
[1741512151242,48.90814561,138.81,138.78,0.0457388]
[1741512151243,0.04606139,138.8,138.78,0.0457388]
[1741512152246,0.04606139,138.8,138.78,7.2526388]
[1741512152840,0.04606139,138.8,138.78,0.0457388]
[1741512153041,0.04606139,138.8,138.78,10.10228441]
[1741512154849,0.04606139,138.8,138.79,7.2064]
[1741512155947,0.04606139,138.8,138.78,10.10228441]
[1741512156250,7.25196139,138.8,138.78,0.0457388]
[1741512156650,0.04606139,138.8,138.78,0.0457388]
[1741512158065,7.25196139,138.8,138.78,0.0457388]
[1741512159753,7.2064,138.79,138.78,0.0457388]
[1741512161155,17.26294561,138.79,138.78,0.0457388]
[1741512163757,7.2064,138.79,138.78,0.0457388]
[1741512166050,0.04606139,138.8,138.78,0.0457388]
[1741512166556,0.04606139,138.8,138.78,10.10228441]
[1741512166757,0.04606139,138.8,138.78,35.86228441]
[1741512166957,0.04606139,138.8,138.79,7.2064]
[1741512169263,275.58804561,138.86,138.78,35.86228441]
[1741512169465,34.9146,138.86,138.82,7.2047]
[1741512169859,32.9631,138.86,138.82,7.2047]
[1741512170456,17.25894561,138.87,138.83,7.204]
[1741512170664,0.05284337,138.85,138.83,17.30906867]
[1741512171463,0.05284337,138.85,138.84,7.2038]
[1741512171660,0.05284337,138.85,138.83,10.10506867]
[1741512174664,7.25644337,138.85,138.83,0.04852306]
[1741512174864,10.10938898,138.85,138.83,0.04852306]
[1741512175567,7.2038,138.84,138.83,0.04852306]
[1741512176369,10.10938898,138.85,138.79,25.76]
[1741512176570,10.05654561,138.83,138.78,10.05654561]
[1741512177466,0.05055236,138.82,138.79,0.05490948]
[1741512178471,7.2058,138.81,138.79,0.05490948]
[1741512179872,0.05055236,138.82,138.79,7.26090948]
[1741512180067,0.05055236,138.82,138.8,10.05654561]
[1741512181470,0.05055236,138.82,138.81,7.2053]
[1741512181773,0.05055236,138.82,138.8,10.05654561]
[1741512182373,0.05055236,138.82,138.8,17.26214561]
[1741512182572,0.05055236,138.82,138.8,10.05654561]
[1741512183379,0.05055236,138.82,138.81,7.2053]
[1741512187285,10.05654561,138.89,138.81,3.6]
[1741512187584,10.05654561,138.89,138.84,10.05654561]
[1741512187784,17.25804561,138.89,138.85,7.2029]
[1741512188376,0.05111726,138.88,138.86,0.05217702]
[1741512189181,0.05111726,138.88,138.86,7.25477702]
[1741512189981,0.05111726,138.88,138.86,0.05217702]
[1741512190187,0.05111726,138.88,138.87,7.2022]
[1741512190386,0.05111726,138.88,138.86,10.10872263]
[1741512191380,0.05111726,138.88,138.86,17.31112263]
[1741512191976,0.05111726,138.88,138.86,10.10872263]
[1741512192384,7.2022,138.87,138.86,0.05217702]
[1741512192781,17.25874561,138.87,138.86,0.05217702]
[1741512193583,10.05654561,138.87,138.86,0.05217702]
[1741512194488,17.25874561,138.87,138.86,0.05217702]
[1741512194685,0.05111726,138.88,138.86,0.05217702]
[1741512195787,0.05111726,138.88,138.86,7.25477702]
[1741512195991,0.05111726,138.88,138.86,0.05217702]
[1741512196695,10.05654561,138.87,138.86,0.05217702]
[1741512197391,17.25874561,138.87,138.86,0.05217702]
[1741512199605,10.05654561,138.87,138.86,0.05217702]
[1741512199892,7.25301726,138.88,138.86,0.05217702]
[1741512201398,0.05111726,138.88,138.86,0.05217702]
[1741512202398,7.2022,138.87,138.86,0.05217702]
[1741512204598,7.25301726,138.88,138.86,0.05217702]
[1741512204793,10.05654561,138.87,138.86,0.05217702]
[1741512206499,17.25874561,138.87,138.86,0.05217702]
[1741512226009,17.25874561,138.87,138.86,7.702e-05]
[1741512226804,10.05654561,138.87,138.79,10.01164607]
[1741512227010,7.2057,138.81,138.79,10.01164607]
[1741512228012,7.25888123,138.81,138.79,10.05766789]
[1741512228315,7.25888123,138.81,138.79,0.04602182]
[1741512228816,0.05318123,138.81,138.79,0.04602182]
[1741512229010,0.05318123,138.81,138.79,10.10256743]
[1741512229212,0.05318123,138.81,138.8,7.2059]
[1741512231516,0.05318123,138.81,138.79,10.10256743]
[1741512235016,7.25858123,138.81,138.79,10.10256743]
[1741512236813,7.2059,138.8,138.79,0.04602182]
[1741512246118,0.05318123,138.81,138.79,0.04602182]
[1741512246323,0.05318123,138.81,138.79,10.10256743]
[1741512248315,10.10972684,138.81,138.79,0.04602182]